fUST/lending_fUST_20250408
["ID","MTS","AMOUNT","RATE_DAILY","PERIOD"]
[357491359,1744086632921,-540.76817023,0.00020665,2]
[357491360,1744086632930,-705.43,0.00020665,2]
[357491361,1744086632940,-500.0,0.00020665,2]
[357491362,1744086632949,-500.0,0.00020665,2]
[357491363,1744086632958,-553.78030347,0.00020665,2]
[357491364,1744086632967,-500.0,0.00020665,2]
[357491365,1744086632977,-500.0,0.00020666,2]
[357491366,1744086632987,-500.0,0.00020666,2]
[357491367,1744086632996,-573.8779309,0.00020666,2]
[357491368,1744086633005,-557.46590158,0.00020666,2]
[357491369,1744086633015,-584.2562736,0.00020666,2]
[357491370,1744086633025,-534.21850433,0.00020666,2]
[357491371,1744086633036,-534.40131793,0.00020666,2]
[357491372,1744086633046,-500.0,0.00020666,2]
[357491373,1744086633055,-500.0,0.00020666,2]
[357491374,1744086633065,-506.61769588,0.00020666,2]
[357491375,1744086633075,-275.63497115,0.00020666,2]
[357491376,1744086633084,-500.0,0.00020666,2]
[357491377,1744086633094,-537.25093908,0.00020666,2]
[357491378,1744086633104,-528.61954205,0.00020666,2]
[357491379,1744086633113,-538.63780617,0.00020666,2]
[357491380,1744086633123,-500.0,0.00020666,2]
[357491381,1744086633133,-500.0,0.00020666,2]
[357491382,1744086633142,-514.40541057,0.00020666,2]
[357491383,1744086633152,-500.0,0.00020666,2]
[357491384,1744086633162,-508.91650702,0.00020666,2]
[357491385,1744086633174,-512.02398315,0.00020666,2]
[357491386,1744086633184,-500.0,0.00020666,2]
[357491387,1744086633193,-544.23603665,0.00020666,2]
[357491388,1744086633203,-536.88999057,0.00020666,2]
[357491389,1744086633213,-500.0,0.00020666,2]
[357491390,1744086633223,-500.0,0.00020666,2]
[357491391,1744086633234,-500.0,0.00020666,2]
[357491392,1744086633243,-545.14398416,0.00020666,2]
[357491393,1744086633253,-579.53,0.00020666,2]
[357491394,1744086633263,-500.0,0.00020666,2]
[357491395,1744086633273,-500.0,0.00020666,2]
[357491396,1744086633283,-544.44169725,0.00020666,2]
[357491397,1744086633293,-500.0,0.00020666,2]
[357491398,1744086633304,-500.0,0.00020666,2]
[357491399,1744086633313,-545.62,0.00020666,2]
[357491400,1744086633323,-512.48467113,0.00020666,2]
[357491401,1744086633332,-500.0,0.00020666,2]
[357491402,1744086633343,-423.98222303,0.00020666,2]
[357491403,1744086633354,-500.0,0.00020666,2]
[357491404,1744086633364,-500.0,0.00020666,2]
[357491405,1744086633374,-500.0,0.00020666,2]
[357491406,1744086633384,-500.0,0.00020666,2]
[357491407,1744086633395,-500.0,0.00020666,2]
[357491408,1744086633405,-500.0,0.00020666,2]
[357491409,1744086633416,-500.0,0.00020666,2]
[357491410,1744086633426,-526.15868234,0.00020666,2]
[357491411,1744086633436,-456.47797609,0.00020666,2]
[357491412,1744086633446,-500.0,0.00020666,2]
[357491413,1744086633455,-500.0,0.00020666,2]
[357491414,1744086633466,-1208.47,0.00020666,2]
[357491415,1744086633476,-500.0,0.00020666,2]
[357491416,1744086633486,-500.0,0.00020666,2]
[357491417,1744086633497,-1448.18,0.00020666,2]
[357491418,1744086633506,-857.75,0.00020666,2]
[357491419,1744086633516,-500.0,0.00020666,2]
[357491420,1744086633528,-1736.13,0.00020666,2]
[357491421,1744086633538,-500.0,0.00020666,2]
[357491422,1744086633548,-515.51466929,0.00020666,2]
[357491423,1744086633558,-500.0,0.00020666,2]
[357491424,1744086633568,-500.0,0.00020666,2]
[357491425,1744086633577,-500.0,0.00020666,2]
[357491426,1744086633588,-179.41879032,0.00020666,2]
[357491427,1744086633598,-500.0,0.00020666,2]
[357491428,1744086633608,-591.79521693,0.00020666,2]
[357491429,1744086633618,-473.14925142,0.00020666,2]
[357491430,1744086633628,-785.28,0.00020666,2]
[357491431,1744086633638,-500.0,0.00020666,2]
[357491432,1744086633647,-500.0,0.00020666,2]
[357491433,1744086633657,-500.0,0.00020666,2]
[357491434,1744086633667,-500.0,0.00020666,2]
[357491435,1744086633677,-829.89,0.00020666,2]
[357491436,1744086633686,-500.0,0.00020666,2]
[357491437,1744086633696,-555.5214894,0.00020666,2]
[357491438,1744086633705,-757.43,0.00020666,2]
[357491439,1744086633715,-587.00497646,0.00020666,2]
[357491440,1744086633724,-500.0,0.00020666,2]
[357491441,1744086633738,-500.0,0.00020666,2]
[357491442,1744086633748,-500.0,0.00020666,2]
[357491443,1744086633758,-500.0,0.00020666,2]
[357491444,1744086633770,-500.0,0.00020666,2]
[357491445,1744086633782,-500.0,0.00020666,2]
[357491446,1744086633792,-1079.66,0.00020666,2]
[357491447,1744086633802,-500.0,0.00020666,2]
[357491448,1744086633813,-509.01598758,0.00020666,2]
[357491449,1744086633826,-500.0,0.00020666,2]
[357491450,1744086633836,-500.0,0.00020666,2]
[357491451,1744086633847,-500.0,0.00020666,2]
[357491452,1744086633857,-500.0,0.00020666,2]
[357491453,1744086633868,-636.72494231,0.00020666,2]
[357491454,1744086633878,-500.0,0.00020666,2]
[357491455,1744086633888,-1472.61,0.00020666,2]
[357491456,1744086633898,-500.0,0.00020666,2]
[357491458,1744086633907,-500.0,0.00020666,2]
[357491459,1744086633918,-500.0,0.00020666,2]
[357491460,1744086633928,-525.65378884,0.00020666,2]
[357491461,1744086633938,-500.0,0.00020666,2]
[357491462,1744086633948,-506.10456552,0.00020666,2]
[357491463,1744086633958,-500.63267858,0.00020666,2]
[357491464,1744086633968,-577.61412567,0.00020666,2]
[357491465,1744086633978,-636.55565717,0.00020666,2]
[357491466,1744086633989,-500.0,0.00020666,2]
[357491467,1744086633999,-521.97391915,0.00020666,2]
[357491468,1744086634009,-641.06726711,0.00020666,2]
[357491469,1744086634019,-531.28954663,0.00020666,2]
[357491470,1744086634029,-507.38423208,0.00020666,2]
[357491471,1744086634039,-524.10512031,0.00020666,2]
[357491472,1744086634049,-500.0,0.00020666,2]
[357491473,1744086634058,-797.76,0.00020666,2]
[357491474,1744086634069,-500.0,0.00020666,2]
[357491475,1744086634079,-500.0,0.00020666,2]
[357491476,1744086634089,-754.73,0.00020666,2]
[357491477,1744086634100,-545.44321781,0.00020666,2]
[357491478,1744086634109,-500.0,0.00020666,2]
[357491479,1744086634119,-500.0,0.00020666,2]
[357491480,1744086634128,-543.19361482,0.00020666,2]
[357491481,1744086634138,-500.0,0.00020666,2]
[357491482,1744086634147,-500.0,0.00020666,2]
[357491483,1744086634158,-1528.62,0.00020666,2]
[357491484,1744086634167,-500.0,0.00020666,2]
[357491485,1744086634177,-504.87638065,0.00020666,2]
[357491486,1744086634188,-579.19062243,0.00020666,2]
[357491487,1744086634197,-500.0,0.00020666,2]
[357491488,1744086634207,-515.62126974,0.00020666,2]
[357491489,1744086634217,-504.58886269,0.00020666,2]
[357491490,1744086634227,-500.0,0.00020666,2]
[357491491,1744086634237,-506.48723716,0.00020666,2]
[357491492,1744086634247,-506.72666641,0.00020666,2]
[357491493,1744086634257,-521.77561409,0.00020667,2]
[357491494,1744086634268,-534.41150807,0.00020667,2]
[357491495,1744086634279,-539.34697009,0.00020667,2]
[357491496,1744086634289,-500.0,0.00020667,2]
[357491497,1744086634300,-532.01017176,0.00020667,2]
[357491498,1744086634310,-402.46871309,0.00020667,2]
[357491499,1744086634320,-509.82756818,0.00020667,2]
[357491500,1744086634330,-534.80504955,0.00020667,2]
[357491501,1744086634339,-512.00290892,0.00020667,2]
[357491502,1744086634350,-541.87249375,0.00020667,2]
[357491503,1744086634360,-529.59044638,0.00020667,2]
[357491504,1744086634369,-539.5608533,0.00020667,2]
[357491505,1744086634378,-507.51908633,0.00020667,2]
[357491506,1744086634388,-531.83693711,0.00020667,2]
[357491507,1744086634398,-546.52261935,0.00020667,2]
[357491508,1744086634407,-547.59393408,0.00020667,2]
[357491509,1744086634417,-553.97945793,0.00020667,2]
[357491510,1744086634427,-503.2517709,0.00020667,2]
[357491511,1744086634437,-518.29498373,0.00020667,2]
[357491512,1744086634447,-500.0,0.00020667,2]
[357491513,1744086634457,-500.0,0.00020667,2]
[357491514,1744086634466,-532.67621286,0.00020667,2]
[357491515,1744086634476,-611.58539934,0.00020667,2]
[357491516,1744086634485,-544.70012061,0.00020667,2]
[357491517,1744086634494,-516.3479572,0.00020667,2]
[357491518,1744086634504,-504.58343946,0.00020667,2]
[357491519,1744086634514,-527.75054484,0.00020667,2]
[357491520,1744086634524,-543.89789123,0.00020667,2]
[357491521,1744086634534,-545.38313665,0.00020667,2]
[357491522,1744086634544,-500.0,0.00020667,2]
[357491523,1744086634554,-546.76402958,0.00020667,2]
[357491524,1744086634564,-540.61716243,0.00020667,2]
[357491525,1744086634574,-549.31,0.00020667,2]
[357491526,1744086634583,-500.0,0.00020667,2]
[357491527,1744086634594,-563.69066973,0.00020667,2]
[357491528,1744086634603,-564.51624313,0.00020667,2]
[357491529,1744086634614,-546.64348294,0.00020667,2]
[357491530,1744086634623,-555.14740422,0.00020667,2]
[357491531,1744086634633,-552.5431434,0.00020667,2]
[357491532,1744086634643,-514.21894855,0.00020667,2]
[357491533,1744086634653,-566.31878902,0.00020667,2]
[357491534,1744086634663,-500.0,0.00020667,2]
[357491535,1744086634672,-521.99100961,0.00020667,2]
[357491536,1744086634682,-512.13330549,0.00020667,2]
[357491537,1744086634692,-500.0,0.00020667,2]
[357491538,1744086634702,-529.79659004,0.00020667,2]
[357491539,1744086634712,-514.50609209,0.00020667,2]
[357491540,1744086634722,-547.12812217,0.00020667,2]
[357491541,1744086634732,-500.0,0.00020667,2]
[357491542,1744086634748,-521.29291844,0.00020667,2]
[357491543,1744086634759,-203.79587772,0.00020667,2]
[357491544,1744086634769,-546.07926906,0.00020667,2]
[357491545,1744086634779,-851.25,0.00020667,2]
[357491546,1744086634790,-500.0,0.00020667,2]
[357491547,1744086634799,-524.05959141,0.00020667,2]
[357491548,1744086634809,-517.28430881,0.00020667,2]
[357491549,1744086634820,-500.0,0.00020667,2]
[357491550,1744086634830,-500.0,0.00020667,2]
[357491551,1744086634840,-533.98977901,0.00020667,2]
[357491552,1744086634850,-524.0165092,0.00020667,2]
[357491553,1744086634859,-513.05889905,0.00020667,2]
[357491554,1744086634869,-506.08789111,0.00020667,2]
[357491555,1744086634879,-527.89470582,0.00020667,2]
[357491556,1744086634889,-526.00617108,0.00020667,2]
[357491557,1744086634898,-512.30359047,0.00020667,2]
[357491558,1744086634908,-504.36820188,0.00020667,2]
[357491559,1744086634918,-500.0,0.00020667,2]
[357491560,1744086634927,-534.47989171,0.00020667,2]
[357491561,1744086634937,-556.60279185,0.00020667,2]
[357491562,1744086634946,-510.6544828,0.00020667,2]
[357491563,1744086634956,-509.84139851,0.00020667,2]
[357491564,1744086634965,-500.0,0.00020667,2]
[357491565,1744086634975,-549.9100138,0.00020667,2]
[357491566,1744086634984,-565.84957089,0.00020667,2]
[357491567,1744086634994,-514.88710183,0.00020667,2]
[357491568,1744086635003,-522.7568718,0.00020667,2]
[357491569,1744086635013,-573.85804389,0.00020667,2]
[357491570,1744086635023,-541.23274793,0.00020667,2]
[357491571,1744086635033,-513.12638976,0.00020667,2]
[357491572,1744086635043,-513.13591731,0.00020667,2]
[357491573,1744086635053,-527.54868857,0.00020667,2]
[357491574,1744086635062,-310.61791378,0.00020667,2]
[357491575,1744086635072,-530.15051129,0.00020667,2]
[357491576,1744086635082,-500.0,0.00020667,2]
[357491577,1744086635092,-513.73631908,0.00020667,2]
[357491578,1744086635102,-524.34370646,0.00020667,2]
[357491579,1744086635112,-510.11284957,0.00020667,2]
[357491580,1744086635122,-508.76108636,0.00020667,2]
[357491581,1744086635131,-500.0,0.00020667,2]
[357491582,1744086635141,-536.00271589,0.00020667,2]
[357491583,1744086635151,-500.0,0.00020667,2]
[357491584,1744086635161,-500.0,0.00020667,2]
[357491585,1744086635171,-513.66121527,0.00020667,2]
[357491586,1744086635180,-332.24203993,0.00020667,2]
[357491587,1744086635190,-500.0,0.00020667,2]
[357491588,1744086635200,-539.10579331,0.00020667,2]
[357491589,1744086635210,-514.52220893,0.00020667,2]
[357491590,1744086635220,-261.44696231,0.00020667,2]
[357491591,1744086635229,-585.24683336,0.00020667,2]
[357491592,1744086635239,-538.98918464,0.00020667,2]
[357491593,1744086635248,-503.23699991,0.00020667,2]
[357491594,1744086635258,-525.6836325,0.00020667,2]
[357491595,1744086635268,-529.53301268,0.00020667,2]
[357491596,1744086635278,-550.93947593,0.00020667,2]
[357491597,1744086635287,-528.00428337,0.00020667,2]
[357491598,1744086635297,-526.54100927,0.00020667,2]
[357491599,1744086635307,-520.46320413,0.00020667,2]
[357491600,1744086635317,-500.0,0.00020667,2]
[357491601,1744086635326,-500.0,0.00020667,2]
[357491602,1744086635336,-500.0,0.00020667,2]
[357491603,1744086635346,-527.5769504,0.00020667,2]
[357491604,1744086635356,-514.89997072,0.00020667,2]
[357491605,1744086635366,-630.61164299,0.00020667,2]
[357491606,1744086635375,-542.8626913,0.00020667,2]
[357491607,1744086635384,-515.43249543,0.00020667,2]
[357491608,1744086635392,-523.36828448,0.00020667,2]
[357491609,1744086635402,-507.45726147,0.00020667,2]
[357491610,1744086635412,-552.69229258,0.00020667,2]
[357491611,1744086635421,-533.50413239,0.00020667,2]
[357491612,1744086635430,-500.0,0.00020667,2]
[357491613,1744086635440,-833.31,0.00020667,2]
[357491614,1744086635449,-530.15422322,0.00020667,2]
[357491615,1744086635458,-541.90188293,0.00020667,2]
[357491616,1744086635467,-521.29803794,0.00020667,2]
[357491617,1744086635477,-500.0,0.00020667,2]
[357491618,1744086635487,-540.1629269,0.00020667,2]
[357491619,1744086635497,-171.27417864,0.00020667,2]
[357491620,1744086635506,-535.11851542,0.00020667,2]
[357491621,1744086635516,-569.46650709,0.00020667,2]
[357491622,1744086635526,-500.0,0.00020667,2]
[357491623,1744086635535,-538.08869268,0.00020667,2]
[357491624,1744086635546,-679.9,0.00020667,2]
[357491625,1744086635555,-520.76559891,0.00020667,2]
[357491626,1744086635564,-539.90618849,0.00020667,2]
[357491627,1744086635574,-532.38467579,0.00020667,2]
[357491628,1744086635584,-519.12128481,0.00020667,2]
[357491629,1744086635593,-528.52126969,0.00020667,2]
[357491630,1744086635602,-644.77,0.00020667,2]
[357491631,1744086635612,-526.21885454,0.00020667,2]
[357491632,1744086635621,-500.0,0.00020667,2]
[357491633,1744086635630,-513.63609823,0.00020667,2]
[357491634,1744086635640,-500.0,0.00020667,2]
[357491635,1744086635649,-500.0,0.00020667,2]
[357491636,1744086635659,-558.38261018,0.00020667,2]
[357491637,1744086635669,-532.46116695,0.00020667,2]
[357491638,1744086635678,-500.0,0.00020667,2]
[357491639,1744086635688,-521.44136646,0.00020667,2]
[357491640,1744086635698,-431.81392735,0.00020667,2]
[357491641,1744086635708,-412.97741077,0.00020667,2]
[357491642,1744086635717,-520.85750605,0.00020667,2]
[357491643,1744086635727,-500.0,0.00020667,2]
[357491644,1744086635739,-572.8426794,0.00020667,2]
[357491645,1744086635749,-500.0,0.00020667,2]
[357491646,1744086635758,-502.41520705,0.00020667,2]
[357491647,1744086635768,-519.69670708,0.00020667,2]
[357491648,1744086635779,-753.68,0.00020667,2]
[357491649,1744086635788,-500.0,0.00020667,2]
[357491650,1744086635798,-257.03152615,0.00020667,2]
[357491651,1744086635808,-500.0,0.00020667,2]
[357491652,1744086635942,-500.0,0.00020667,2]
[357491653,1744086635987,-500.0,0.00020667,2]
[357491654,1744086635997,-753.22,0.00020667,2]
[357491655,1744086636008,-500.0,0.00020667,2]
[357491656,1744086636017,-500.0,0.00020667,2]
[357491657,1744086636028,-526.37945631,0.00020667,2]
[357491658,1744086636038,-522.88881514,0.00020667,2]
[357491659,1744086636047,-500.0,0.00020667,2]
[357491660,1744086636057,-500.0,0.00020667,2]
[357491661,1744086636067,-500.0,0.00020667,2]
[357491662,1744086636076,-500.0,0.00020667,2]
[357491663,1744086636085,-761.98,0.00020667,2]
[357491664,1744086636095,-549.88073098,0.00020667,2]
[357491665,1744086636105,-526.19166374,0.00020667,2]
[357491666,1744086636115,-500.0,0.00020667,2]
[357491667,1744086636124,-610.37,0.00020667,2]
[357491668,1744086636134,-500.0,0.00020667,2]
[357491669,1744086636144,-500.0,0.00020667,2]
[357491670,1744086636153,-500.0,0.00020667,2]
[357491671,1744086636163,-530.90881583,0.00020667,2]
[357491672,1744086636173,-524.36250671,0.00020667,2]
[357491673,1744086636183,-542.81937407,0.00020667,2]
[357491674,1744086636193,-500.0,0.00020667,2]
[357491675,1744086636203,-525.58316408,0.00020667,2]
[357491676,1744086636213,-719.12,0.00020667,2]
[357491677,1744086636222,-538.74148588,0.00020667,2]
[357491678,1744086636232,-500.0,0.00020667,2]
[357491679,1744086636242,-1393.25,0.00020667,2]
[357491680,1744086636252,-500.0,0.00020667,2]
[357491681,1744086636262,-500.0,0.00020667,2]
[357491682,1744086636272,-500.0,0.00020667,2]
[357491683,1744086636282,-500.0,0.00020667,2]
[357491684,1744086636291,-500.0,0.00020667,2]
[357491685,1744086636301,-500.0,0.00020667,2]
[357491686,1744086636311,-509.50639767,0.00020667,2]
[357491687,1744086636321,-1195.98,0.00020667,2]
[357491688,1744086636331,-500.0,0.00020667,2]
[357491689,1744086636340,-500.0,0.00020667,2]
[357491690,1744086636350,-500.0,0.00020667,2]
[357491691,1744086636360,-500.0,0.00020667,2]
[357491692,1744086636370,-500.0,0.00020667,2]
[357491693,1744086636379,-967.6,0.00020667,2]
[357491694,1744086636389,-512.91102725,0.00020667,2]
[357491695,1744086636399,-500.0,0.00020667,2]
[357491696,1744086636409,-508.04123836,0.00020667,2]
[357491697,1744086636420,-500.0,0.00020667,2]
[357491698,1744086636430,-500.0,0.00020667,2]
[357491699,1744086636440,-500.0,0.00020667,2]
[357491700,1744086636450,-796.03,0.00020667,2]
[357491701,1744086636460,-1898.17,0.00020667,2]
[357491702,1744086636471,-500.0,0.00020667,2]
[357491703,1744086636480,-500.0,0.00020667,2]
[357491704,1744086636490,-500.0,0.00020667,2]
[357491705,1744086636499,-768.2,0.00020667,2]
[357491706,1744086636509,-543.94045098,0.00020667,2]
[357491707,1744086636518,-251.89398279,0.00020667,2]
[357491708,1744086636528,-522.76465403,0.00020667,2]
[357491709,1744086636538,-522.60912289,0.00020667,2]
[357491710,1744086636548,-500.0,0.00020667,2]
[357491711,1744086636559,-500.0,0.00020667,2]
[357491712,1744086636569,-5795.33,0.00020667,2]
[357491713,1744086636578,-185.51951348,0.00020667,2]
[357491714,1744086636589,-2711.65,0.00020667,2]
[357491715,1744086636598,-500.0,0.00020667,2]
[357491716,1744086636608,-500.0,0.00020667,2]
[357491717,1744086636619,-500.0,0.00020667,2]
[357491718,1744086636628,-500.0,0.00020667,2]
[357491719,1744086636638,-1025.53,0.00020667,2]
[357491720,1744086636648,-513.16908449,0.00020667,2]
[357491721,1744086636657,-500.0,0.00020667,2]
[357491722,1744086636668,-500.0,0.00020667,2]
[357491723,1744086636678,-572.62047022,0.00020667,2]
[357491724,1744086636688,-500.0,0.00020667,2]
[357491725,1744086636698,-500.0,0.00020667,2]
[357491726,1744086636708,-501.43619313,0.00020669,2]
[357491727,1744086636717,-501.73344041,0.00020669,2]
[357491728,1744086636727,-500.0,0.00020669,2]
[357491729,1744086636739,-539.29600496,0.00020669,2]
[357491730,1744086636748,-500.0,0.00020669,2]
[357491731,1744086636758,-333.02624848,0.00020669,2]
[357491732,1744086636767,-500.0,0.00020669,2]
[357491733,1744086636779,-500.0,0.00020669,2]
[357491734,1744086636788,-530.66882437,0.00020669,2]
[357491735,1744086636798,-500.0,0.00020669,2]
[357491736,1744086636808,-583.45675206,0.00020669,2]
[357491737,1744086636819,-689.58,0.00020669,2]
[357491738,1744086636829,-541.15085231,0.00020669,2]
[357491739,1744086636838,-605.09802194,0.00020669,2]
[357491740,1744086636848,-500.0,0.00020669,2]
[357491741,1744086636857,-538.65557137,0.00020669,2]
[357491742,1744086636867,-500.0,0.00020669,2]
[357491743,1744086636876,-500.0,0.00020669,2]
[357491744,1744086636886,-500.0,0.00020669,2]
[357491745,1744086636895,-500.0,0.00020669,2]
[357491746,1744086636906,-500.0,0.00020811,2]
[357491747,1744086636917,-191.34994356,0.00020909,2]
[357491748,1744086636927,-500.0,0.00020938,2]
[357491749,1744086636937,-164.90689077,0.00020938,2]
[357491750,1744086636947,-588.80208984,0.00020938,2]
[357491751,1744086636956,-500.0,0.00020939,2]
[357491752,1744086636966,-500.0,0.00020939,2]
[357491753,1744086636976,-500.0,0.00020939,2]
[357491754,1744086636986,-757.25,0.00020939,2]
[357491755,1744086636995,-500.0,0.00020939,2]
[357491756,1744086637005,-3049.04,0.00020939,2]
[357491757,1744086637015,-500.0,0.00020939,2]
[357491758,1744086637025,-743.38,0.00020939,2]
[357491759,1744086637034,-1074.26,0.00020939,2]
[357491760,1744086637043,-1107.01,0.00020939,2]
[357491761,1744086637053,-698.6,0.00020939,2]
[357491762,1744086637063,-500.0,0.00020939,2]
[357491763,1744086637073,-1839.77,0.00020939,2]
[357491764,1744086637083,-704.75,0.00020939,2]
[357491765,1744086637093,-1019.15,0.00020939,2]
[357491766,1744086637102,-500.0,0.00020939,2]
[357491767,1744086637112,-500.0,0.00020939,2]
[357491768,1744086637121,-500.0,0.00020939,2]
[357491769,1744086637130,-1128.08,0.00020939,2]
[357491770,1744086637140,-779.13483901,0.00020939,2]
[357491771,1744086637308,-579.01516099,0.00020939,2]
[357491772,1744086637318,-546.81666088,0.00020939,2]
[357491773,1744086637328,-500.0,0.00020939,2]
[357491774,1744086637338,-705.43,0.00020939,2]
[357491775,1744086637348,-500.0,0.00020939,2]
[357491776,1744086637358,-500.0,0.00020939,2]
[357491777,1744086637367,-500.0,0.0002094,2]
[357491778,1744086637377,-556.47313479,0.0002094,2]
[357491779,1744086637387,-500.0,0.0002094,2]
[357491780,1744086637396,-500.0,0.0002094,2]
[357491781,1744086637406,-500.0,0.0002094,2]
[357491782,1744086637416,-500.0,0.0002094,2]
[357491783,1744086637425,-500.0,0.0002094,2]
[357491784,1744086637435,-500.0,0.0002094,2]
[357491785,1744086637444,-500.0,0.0002094,2]
[357491786,1744086637454,-579.53,0.0002094,2]
[357491787,1744086637464,-500.0,0.0002094,2]
[357491788,1744086637474,-500.0,0.0002094,2]
[357491789,1744086637484,-500.0,0.0002094,2]
[357491790,1744086637493,-500.0,0.0002094,2]
[357491791,1744086637503,-545.62,0.0002094,2]
[357491792,1744086637513,-500.0,0.0002094,2]
[357491793,1744086637522,-500.0,0.0002094,2]
[357491794,1744086637532,-500.0,0.0002094,2]
[357491795,1744086637542,-500.0,0.0002094,2]
[357491796,1744086637552,-500.0,0.0002094,2]
[357491797,1744086637562,-500.0,0.0002094,2]
[357491798,1744086637572,-500.0,0.0002094,2]
[357491799,1744086637582,-500.0,0.0002094,2]
[357491800,1744086637592,-500.0,0.0002094,2]
[357491801,1744086637601,-500.0,0.0002094,2]
[357491802,1744086637611,-1208.47,0.0002094,2]
[357491803,1744086637620,-500.0,0.0002094,2]
[357491804,1744086637630,-500.0,0.0002094,2]
[357491805,1744086637640,-1448.18,0.0002094,2]
[357491806,1744086637650,-857.75,0.0002094,2]
[357491807,1744086637660,-500.0,0.0002094,2]
[357491808,1744086637669,-1736.13,0.0002094,2]
[357491809,1744086637679,-500.0,0.0002094,2]
[357491810,1744086637689,-500.0,0.0002094,2]
[357491811,1744086637699,-523.47098299,0.0002094,2]
[357491812,1744086637709,-785.28,0.0002094,2]
[357491813,1744086637719,-522.46540073,0.0002094,2]
[357491814,1744086637729,-500.0,0.0002094,2]
[357491815,1744086637742,-500.0,0.0002094,2]
[357491816,1744086637752,-595.54292954,0.0002094,2]
[357491817,1744086637762,-829.89,0.0002094,2]
[357491818,1744086637772,-500.0,0.0002094,2]
[357491819,1744086637783,-596.9527307,0.0002094,2]
[357491820,1744086637795,-160.4772693,0.0002094,2]
[357491821,1744086637805,-500.0,0.0002094,2]
[357491823,1744086637816,-129.26049887,0.0002094,2]
[357491825,1744086637828,-370.73950113,0.0002094,2]
[357491827,1744086637838,-96.35979886,0.0002094,2]
[357491851,1744086638428,-500.0,0.00019989,2]
[357491852,1744086638439,-500.0,0.00020666,2]
[357491853,1744086638450,-500.0,0.00020667,2]
[357491854,1744086638460,-500.0,0.00020939,2]
[357491855,1744086638470,-403.64020114,0.0002094,2]
[357491856,1744086638479,-500.0,0.0002094,2]
[357491857,1744086638489,-47.09515486,0.0002094,2]
[357491858,1744086638538,-470.6069985,0.0002094,2]
[357491859,1744086638548,-500.0,0.0002094,2]
[357491860,1744086638558,-1079.66,0.0002094,2]
[357491861,1744086638568,-549.64509128,0.0002094,2]
[357491862,1744086638578,-404.1389377,0.0002094,2]
[357491863,1744086638588,-500.0,0.0002094,2]
[357491864,1744086638598,-500.0,0.0002094,2]
[357491865,1744086638609,-500.0,0.0002094,2]
[357491866,1744086638619,-500.0,0.0002094,2]
[357491868,1744086638629,-1472.61,0.0002094,2]
[357491869,1744086638638,-500.0,0.0002094,2]
[357491870,1744086638662,-500.0,0.0002094,2]
[357491871,1744086638674,-500.0,0.0002094,2]
[357491872,1744086638684,-500.0,0.0002094,2]
[357491873,1744086638694,-500.0,0.0002094,2]
[357491874,1744086638705,-500.0,0.0002094,2]
[357491875,1744086638715,-797.76,0.0002094,2]
[357491876,1744086638726,-500.0,0.0002094,2]
[357491877,1744086638737,-754.73,0.0002094,2]
[357491878,1744086638749,-500.0,0.0002094,2]
[357491879,1744086638758,-500.0,0.0002094,2]
[357491880,1744086638768,-1528.62,0.0002094,2]
[357491881,1744086638779,-233.4,0.0002094,2]
[357491882,1744086638868,-500.0,0.0002094,2]
[357491883,1744086638879,-553.63194446,0.00020941,2]
[357491884,1744086638888,-500.0,0.00020941,2]
[357491885,1744086638897,-500.0,0.00020941,2]
[357491886,1744086638907,-167.26264803,0.00020941,2]